bitfinex-derivatives/quotes_BNBF0:USTF0_20250116
["timestamp","ask_amount","ask_price","bid_price","bid_amount"]
[1737047414078,1.05143111,713.12,712.18,0.48897021]
[1737047414281,1.05143111,713.12,712.19,0.48897021]
[1737047414482,1.05143111,713.12,712.2,0.48897021]
[1737047414687,1.05143111,713.15,712.21,0.48897021]
[1737047414983,1.05143111,713.15,712.22,0.48897021]
[1737047415185,1.05143111,713.15,712.23,0.48897021]
[1737047415379,1.05143111,713.15,712.24,0.48897021]
[1737047415586,1.05143111,713.16,712.25,0.48897021]
[1737047415785,1.05143111,713.16,712.15,0.28083971]
[1737047415786,1.05143111,713.16,712.26,0.48897021]
[1737047416087,1.05143111,713.16,712.27,0.48897021]
[1737047416285,1.05143111,713.16,712.28,0.48897021]
[1737047416478,1.05143111,713.5,712.29,0.48897021]
[1737047416682,1.05143111,713.5,712.3,0.48897021]
[1737047416882,1.05143111,713.5,712.31,0.48897021]
[1737047417084,1.05143111,713.5,712.32,0.48897021]
[1737047417284,1.05143111,713.5,712.33,0.48897021]
[1737047417485,1.05143111,713.5,712.34,0.48897021]
[1737047417686,1.05143111,713.5,712.35,0.48897021]
[1737047417880,1.05143111,713.5,712.15,0.28083971]
[1737047417881,1.05143111,713.51,712.36,0.48897021]
[1737047418088,0.28031226,713.49,712.37,0.48897021]
[1737047418283,0.28031226,713.49,712.38,0.48897021]
[1737047418485,0.28031226,713.49,712.15,0.28083971]
[1737047418486,0.28031226,713.49,712.39,0.48897021]
[1737047418781,1.05143111,713.4,712.4,0.48897021]
[1737047418985,1.05143111,713.4,712.41,0.48897021]
[1737047419185,1.05143111,713.4,712.42,0.48897021]
[1737047419382,1.05143111,713.4,712.43,0.48897021]
[1737047419588,1.05143111,713.39,712.44,0.48897021]
[1737047419789,1.05143111,713.39,712.45,0.48897021]
[1737047419987,1.05143111,713.39,712.46,0.48897021]
[1737047420188,1.05143111,713.39,712.47,0.48897021]
[1737047420388,1.05143111,713.39,712.48,0.48897021]
[1737047420586,1.05143111,713.38,712.49,0.48897021]
[1737047420889,1.05143111,713.38,712.5,0.48897021]
[1737047421089,1.05143111,713.38,712.51,0.48897021]
[1737047421385,1.05143111,713.38,712.52,0.48897021]
[1737047421589,1.05143111,713.38,712.53,0.48897021]
[1737047421788,1.05143111,713.39,712.54,0.48897021]
[1737047421988,1.05143111,713.39,712.55,0.48897021]
[1737047422289,1.05143111,713.39,712.56,0.48897021]
[1737047422488,1.05143111,713.39,712.57,0.48897021]
[1737047422690,1.05143111,713.4,712.58,0.48897021]
[1737047422889,1.05143111,713.4,712.59,0.48897021]
[1737047423189,1.05143111,713.4,712.6,0.48897021]
[1737047423388,1.05143111,713.4,712.61,0.48897021]
[1737047423582,1.05143111,713.4,712.62,0.48897021]
[1737047423784,1.05143111,713.48,712.63,0.48897021]
[1737047423986,1.05143111,713.48,712.64,0.48897021]
[1737047424183,1.05143111,713.48,712.65,0.48897021]
[1737047424383,1.05143111,713.48,712.66,0.48897021]
[1737047424586,1.05143111,713.48,712.67,0.48897021]
[1737047424784,0.28031226,713.49,712.68,0.48897021]
[1737047425091,0.28031226,713.49,712.69,0.48897021]
[1737047425289,0.28031226,713.49,712.7,0.48897021]
[1737047425489,0.28031226,713.49,712.71,0.48897021]
[1737047425689,0.28031226,713.49,712.72,0.48897021]
[1737047425889,0.28031226,713.49,712.73,0.48897021]
[1737047426090,1.33174337,713.49,712.74,0.48897021]
[1737047426390,1.33174337,713.49,712.75,0.48897021]
[1737047426590,1.33174337,713.49,712.76,0.48897021]
[1737047426791,1.33174337,713.49,712.77,0.48897021]
[1737047426983,1.33174337,713.49,712.78,0.48897021]
[1737047427182,1.33174337,713.49,712.79,0.48897021]
[1737047427389,0.28031226,713.49,712.8,0.48897021]
[1737047427584,0.28031226,713.49,712.15,0.28083971]
[1737047427786,0.28031226,713.49,712.16,0.74552114]
[1737047427984,0.28031226,713.49,712.17,0.74552114]
[1737047428183,0.28031226,713.49,712.18,0.74552114]
[1737047428385,0.28031226,713.49,712.19,0.74552114]
[1737047428588,0.28031226,713.49,712.2,0.74552114]
[1737047428790,0.28031226,713.49,712.21,0.74552114]
[1737047428990,0.28031226,713.49,712.22,0.48766819]
[1737047429187,0.28031226,713.49,712.23,0.48766819]
[1737047429388,1.05143111,713.46,712.24,0.48766819]
[1737047429586,1.05143111,713.46,712.25,0.48766819]
[1737047429787,1.05143111,713.46,712.26,0.48766819]
[1737047429984,1.05143111,713.46,712.27,0.48766819]
[1737047430183,1.05143111,713.46,712.28,0.48766819]
[1737047430390,1.05143111,713.46,712.29,0.48766819]
[1737047430591,1.05143111,713.45,712.3,0.7455286]
[1737047430786,1.05143111,713.45,712.31,0.48766819]
[1737047430986,1.05143111,713.45,712.32,0.48766819]
[1737047431184,1.05143111,713.45,712.33,0.48766819]
[1737047431390,1.05143111,713.45,712.34,0.48766819]
[1737047431692,1.05143111,713.37,712.35,0.48766819]
[1737047431990,1.05143111,713.37,712.36,0.48766819]
[1737047432189,1.05143111,713.37,712.37,0.48766819]
[1737047432384,1.05143111,713.37,712.38,0.48766819]
[1737047432587,1.05143111,713.4,712.39,0.48766819]
[1737047432789,1.05143111,713.4,712.4,0.48766819]
[1737047432988,1.05143111,713.4,712.41,0.48766819]
[1737047433190,1.05143111,713.4,712.42,0.48766819]
[1737047433384,1.05143111,713.4,712.15,0.28083971]
[1737047433385,1.05143111,713.4,712.43,0.48766819]
[1737047433693,1.05143111,713.44,712.44,0.48766819]
[1737047433896,1.05143111,713.44,712.45,0.48766819]
[1737047434089,1.05143111,713.44,712.46,0.48766819]
[1737047434291,1.05143111,713.44,712.47,0.48766819]
[1737047434590,1.05143111,713.44,712.48,0.48766819]
[1737047434792,1.05143111,713.44,712.49,0.48766819]
[1737047435087,0.28031226,713.49,712.5,0.48766819]
[1737047435290,0.28031226,713.49,712.51,0.48766819]
[1737047435490,0.28031226,713.49,712.52,0.48766819]
[1737047435691,0.28031226,713.49,712.53,0.48766819]
[1737047435892,0.28031226,713.49,712.15,0.28083971]
[1737047435893,0.28031226,713.49,712.54,0.48766819]
[1737047436092,0.28031226,713.49,712.55,0.48766819]
[1737047436292,0.28031226,713.49,712.56,0.48766819]
[1737047436493,0.28031226,713.49,712.57,0.48766819]
[1737047436693,0.28031226,713.49,712.15,0.28083971]
[1737047436694,0.28031226,713.49,712.58,0.48766819]
[1737047436991,0.28031226,713.49,712.59,0.48766819]
[1737047437191,0.28031226,713.49,712.6,0.48766819]
[1737047437492,0.28031226,713.49,712.61,0.48766819]
[1737047437692,0.28031226,713.49,712.62,0.4876009]
[1737047437892,0.28031226,713.49,712.63,0.4876009]
[1737047438093,0.28031226,713.49,712.64,0.4876009]
[1737047438294,0.28031226,713.49,712.65,0.4876009]
[1737047438493,0.28031226,713.49,712.66,0.4876009]
[1737047438693,0.28031226,713.49,712.15,0.28083971]
[1737047438694,0.28031226,713.49,712.67,0.4876009]
[1737047438888,0.28031226,713.49,712.68,0.4876009]
[1737047439089,0.28031226,713.49,712.69,0.4876009]
[1737047439287,0.28031226,713.49,712.7,0.4876009]
[1737047439488,0.28031226,713.49,712.71,0.4876009]
[1737047439695,0.28031226,713.49,712.72,0.4876009]
[1737047439894,0.28031226,713.49,712.73,0.4876009]
[1737047440093,0.28031226,713.49,712.74,0.4876009]
[1737047440396,0.28031226,713.49,712.75,0.4876009]
[1737047440598,0.28031226,713.49,712.76,0.4876009]
[1737047440795,0.28031226,713.49,712.77,0.4876009]
[1737047440995,0.28031226,713.49,712.78,0.4876009]
[1737047441190,0.28031226,713.49,712.79,0.4876009]
[1737047441496,0.28031226,713.49,712.8,0.4876009]
[1737047441692,0.28031226,713.49,712.81,0.4876009]
[1737047441899,0.28031226,713.49,712.82,0.4876009]
[1737047442196,0.28031226,713.49,712.83,0.4876009]
[1737047442398,0.28031226,713.49,712.15,0.28083971]
[1737047442599,0.28031226,713.49,712.16,0.74515256]
[1737047442898,0.28031226,713.49,712.17,1.02598438]
[1737047443098,0.28031226,713.49,712.18,0.74515256]
[1737047443399,0.28031226,713.49,712.19,0.48752752]
[1737047443599,0.28031226,713.49,712.2,0.48752752]
[1737047443799,0.28031226,713.49,712.21,0.48752752]
[1737047443998,0.28031226,713.49,712.22,0.48752752]
[1737047444300,0.28031226,713.49,712.23,0.48752752]
[1737047444595,0.28031226,713.49,712.24,0.48752752]
[1737047444800,0.28031226,713.49,712.25,0.48752752]
[1737047444992,0.28031226,713.49,712.26,0.48752752]
[1737047445197,0.28031226,713.49,712.27,0.48752752]
[1737047445398,0.28031226,713.49,712.28,0.48752752]
[1737047445600,0.28031226,713.49,712.29,0.48752752]
[1737047445800,0.28031226,713.49,712.3,0.48752752]
[1737047446103,1.05143111,713.48,712.31,0.48752752]
[1737047446304,1.05143111,713.48,712.32,0.48752752]
[1737047446501,1.05143111,713.48,712.33,0.48752752]
[1737047446702,1.05143111,713.48,712.34,0.48752752]
[1737047447001,1.05143111,713.48,712.35,0.48752752]
[1737047447208,1.05143111,713.41,712.36,0.48752752]
[1737047447505,1.05143111,713.41,712.37,0.48752752]
[1737047447708,1.05143111,713.41,712.38,0.48752752]
[1737047447905,1.05143111,713.41,712.39,0.48752752]
[1737047448111,1.05143111,713.42,712.4,0.48752752]
[1737047448310,1.05143111,713.42,712.41,0.48752752]
[1737047448609,1.05143111,713.42,712.42,0.48752752]
[1737047448910,1.05143111,713.42,712.43,0.48752752]
[1737047449107,1.05143111,713.42,712.44,0.48752752]
[1737047449307,1.05143111,713.39,712.45,0.48752752]
[1737047449505,1.05143111,713.39,712.46,0.48752752]
[1737047449710,1.05143111,713.39,712.47,0.48752752]
[1737047449904,1.05143111,713.39,712.48,0.48752752]
[1737047450209,1.05143111,713.32,712.49,0.48752752]
[1737047450409,1.05143111,713.32,712.5,0.48752752]
[1737047450609,1.05143111,713.32,712.51,0.48752752]
[1737047450807,1.05143111,713.32,712.52,0.48752752]
[1737047451007,1.05143111,713.32,712.53,0.48752752]
[1737047451209,1.05143111,713.32,712.54,0.48752752]
[1737047451409,1.05143111,713.32,712.55,0.48752752]
[1737047451623,1.05143111,713.3,712.56,0.48752752]
[1737047451805,1.05143111,713.3,712.57,0.48752752]
[1737047452008,1.05143111,713.3,712.58,0.48752752]
[1737047452211,1.05143111,713.3,712.59,0.48752752]
[1737047452510,1.05143111,713.3,712.6,0.48752752]
[1737047452712,1.05143111,713.31,712.17,0.28083182]
[1737047452906,1.05143111,713.31,712.18,0.48794368]
[1737047453109,1.05143111,713.31,712.19,0.48794368]
[1737047453309,1.05143111,713.31,712.2,0.48794368]
[1737047453510,1.05143111,713.31,712.21,0.48794368]
[1737047453813,1.05143111,713.28,712.22,0.48794368]
[1737047454012,1.05143111,713.28,712.23,0.48794368]
[1737047454213,1.05143111,713.28,712.24,0.48794368]
[1737047454412,1.05143111,713.28,712.25,0.48794368]
[1737047454608,1.05143111,713.28,712.17,0.28083182]
[1737047454609,1.05143111,713.28,712.26,0.48786011]
[1737047454813,1.05143111,713.28,712.27,0.48786011]
[1737047455012,1.05143111,713.28,712.28,0.48786011]
[1737047455214,1.05143111,713.27,712.29,0.48786011]
[1737047455413,1.05143111,713.27,712.3,0.48786011]
[1737047455713,1.05143111,713.27,712.31,0.48786011]
[1737047455918,1.05143111,713.27,712.32,0.48786011]
[1737047456107,1.05143111,713.3,712.33,0.48786011]
[1737047456307,1.05143111,713.3,712.34,0.48786011]
[1737047456507,1.05143111,713.3,712.35,0.48786011]
[1737047456711,1.05143111,713.3,712.36,0.48786011]
[1737047456912,1.05143111,713.3,712.37,0.48786011]
[1737047457113,1.05143111,713.27,712.38,0.48786011]
[1737047457313,1.05143111,713.27,712.39,0.48786011]
[1737047457513,1.05143111,713.27,712.4,0.48786011]
[1737047457713,1.05143111,713.27,712.41,0.48786011]
[1737047457917,1.05143111,713.27,712.42,0.48786011]
[1737047458114,1.05143111,713.3,712.43,0.48786011]
[1737047458309,1.05143111,713.3,712.44,0.48786011]
[1737047458509,1.05143111,713.3,712.45,0.48786011]
[1737047458711,1.05143111,713.3,712.46,0.48786011]
[1737047458911,1.05143111,713.3,712.47,0.48777904]
[1737047459214,1.05143111,713.3,712.48,0.48777904]
[1737047459414,1.05143111,713.3,712.17,0.28083182]
[1737047459415,1.05143111,713.32,712.49,0.48777904]
[1737047459610,1.05143111,713.32,712.5,0.48777904]
[1737047459811,1.05143111,713.32,712.51,0.48777904]
[1737047460011,1.05143111,713.32,712.52,0.48777904]
[1737047460210,1.05143111,713.32,712.53,0.48777904]
[1737047460415,1.05143111,713.32,712.54,0.48777904]
[1737047460714,1.05143111,713.32,712.55,0.48777904]
[1737047460913,1.05143111,713.32,712.56,0.48777904]
[1737047461114,0.28031226,713.49,712.57,0.48777904]
[1737047461115,1.05143111,713.36,712.57,0.48777904]
[1737047461314,1.05143111,713.36,712.58,0.48795191]
[1737047461508,1.05143111,713.36,712.17,0.28083182]
[1737047461714,1.05143111,713.36,712.18,0.48801166]
[1737047461913,1.05143111,713.36,712.19,0.48801166]
[1737047462109,1.05143111,713.33,712.2,0.48801166]
[1737047462310,1.05143111,713.33,712.21,0.48801166]
[1737047462511,1.05143111,713.33,712.22,0.48801166]
[1737047462710,1.05143111,713.33,712.23,0.48801166]
[1737047462908,1.05143111,713.33,712.24,0.48801166]
[1737047463108,1.05143111,713.33,712.25,0.48801166]
[1737047463314,1.05143111,713.33,712.26,0.48801166]
[1737047463609,1.05143111,713.33,712.27,0.48801166]
[1737047463813,1.05143111,713.33,712.28,0.48801166]
[1737047464011,1.05143111,713.33,712.29,0.48801166]
[1737047464314,1.05143111,713.35,712.3,0.48801166]
[1737047464515,1.05143111,713.35,712.31,0.48801166]
[1737047464716,1.05143111,713.35,712.32,0.48801166]
[1737047464917,1.05143111,713.35,712.33,0.48801166]
[1737047465107,1.05143111,713.35,712.34,0.48801166]
[1737047465313,1.05143111,713.35,712.35,0.48801166]
[1737047465514,1.05143111,713.35,712.36,0.48801166]
[1737047465711,1.05143111,713.35,712.37,0.48801166]
[1737047465916,1.05143111,713.34,712.38,0.48801166]
[1737047466114,1.05143111,713.34,712.39,0.48801166]
[1737047466315,1.05143111,713.34,712.4,0.48801166]
[1737047466515,1.05143111,713.34,712.41,0.48801166]
[1737047466715,1.05143111,713.34,712.42,0.48801166]
[1737047466912,1.05143111,713.34,712.43,0.48801166]
[1737047467112,1.05143111,713.34,712.44,0.48801166]
[1737047467313,1.05143111,713.41,712.45,0.4880443]
[1737047467617,1.05143111,713.41,712.46,0.4880443]
[1737047467813,1.05143111,713.41,712.47,0.4880443]
[1737047468013,1.05143111,713.41,712.48,0.4880443]
[1737047468216,0.28031226,713.49,712.17,0.28083182]
[1737047468217,1.05143111,713.44,712.49,0.4880443]
[1737047468419,1.05143111,713.44,712.5,0.4880443]
[1737047468718,1.05143111,713.44,712.51,0.4880443]
[1737047468918,1.05143111,713.44,712.52,0.4880443]
[1737047469121,1.05143111,713.44,712.53,0.4880443]
[1737047469418,1.05143111,713.44,712.17,0.28083182]
[1737047469419,1.05143111,713.44,712.54,0.48787577]
[1737047469615,1.05143111,713.45,712.55,0.48787577]
[1737047469817,1.05143111,713.45,712.56,0.48787577]
[1737047470015,1.05143111,713.45,712.57,0.48787577]
[1737047470218,1.05143111,713.45,712.58,0.48787577]
[1737047470420,1.05143111,713.45,712.59,0.48787577]
[1737047470621,0.28031226,713.49,712.6,0.48787577]
[1737047470821,0.28031226,713.49,712.61,0.48787577]
[1737047471121,0.28031226,713.49,712.62,0.48771613]
[1737047471319,0.28031226,713.49,712.63,0.48771613]
[1737047471620,0.28031226,713.49,712.64,0.48771613]
[1737047471821,0.28031226,713.49,712.65,0.48771613]
[1737047472022,0.28031226,713.49,712.66,0.48771613]
[1737047472217,0.28031226,713.49,712.67,0.48771613]
[1737047472521,0.28031226,713.49,712.68,0.48771613]
[1737047472719,0.28031226,713.49,712.69,0.48771613]
[1737047473020,0.28031226,713.49,712.7,0.48771613]
[1737047473220,0.28031226,713.49,712.71,0.48771613]
[1737047473425,0.28031226,713.49,712.72,0.48771613]
[1737047473622,0.28031226,713.49,712.73,0.48786402]
[1737047473821,0.28031226,713.49,712.74,0.48786402]
[1737047474021,0.28031226,713.49,712.17,0.28083182]
[1737047474221,1.05143111,713.48,712.18,0.48794252]
[1737047474421,1.05143111,713.48,712.19,0.74580438]
[1737047474622,1.05143111,713.48,712.2,0.48794252]
[1737047474823,1.05143111,713.48,712.21,0.48794252]
[1737047475023,1.05143111,713.48,712.22,0.48794252]
[1737047475222,1.05143111,713.48,712.23,0.74580289]
[1737047475516,1.05143111,713.35,712.24,0.74580951]
[1737047475722,1.05143111,713.35,712.25,0.48794252]
[1737047475922,1.05143111,713.35,712.26,0.48794252]
[1737047476118,1.05143111,713.35,712.27,0.48794252]
[1737047476322,1.05143111,713.35,712.17,0.28083182]
[1737047476323,1.05143111,713.35,712.28,0.48794252]
[1737047476626,1.05143111,713.24,712.29,0.48794252]
[1737047476825,1.05143111,713.24,712.3,0.488179]
[1737047477026,1.05143111,713.24,712.31,0.488179]
[1737047477224,1.05143111,713.24,712.17,0.28083182]
[1737047477225,1.05143111,713.24,712.32,0.488179]
[1737047477420,1.05143111,713.24,712.33,0.488179]
[1737047477623,1.05143111,713.24,712.34,0.488179]
[1737047477825,1.05143111,713.24,712.35,0.488179]
[1737047478021,1.05143111,713.24,712.36,0.488179]
[1737047478221,1.05143111,713.24,712.37,0.488179]
[1737047478425,1.05143111,713.24,712.38,0.488179]
[1737047478624,1.05143111,713.24,712.39,0.488179]
[1737047478826,1.05143111,713.27,712.4,0.488179]
[1737047479024,1.05143111,713.27,712.41,0.488179]
[1737047479221,1.05143111,713.27,712.42,0.488179]
[1737047479420,1.05143111,713.27,712.22,1.04913556]
[1737047479421,1.05143111,713.27,712.43,0.488179]
[1737047479621,1.05143111,713.27,712.44,0.488179]
[1737047479825,1.05143111,713.27,712.45,0.488179]
[1737047480028,1.05143111,713.27,712.46,0.488179]
[1737047480226,1.05143111,713.27,712.47,0.488179]
[1737047480419,1.05143111,713.27,712.48,0.488179]
[1737047480621,1.05143111,713.27,712.49,0.4881657]
[1737047480826,1.05143111,713.27,712.5,0.4881657]
[1737047481027,1.05143111,713.27,712.51,0.4881657]
[1737047481327,1.05143111,713.29,712.52,0.4881657]
[1737047481519,1.05143111,713.29,712.53,0.4881657]
[1737047481723,1.05143111,713.29,712.54,0.4881657]
[1737047481925,1.05143111,713.29,712.55,0.4881657]
[1737047482124,1.05143111,713.29,712.56,0.4881657]
[1737047482326,1.05143111,713.29,712.57,0.4881657]
[1737047482629,1.05143111,713.28,712.58,0.4881657]
[1737047482828,1.05143111,713.28,712.59,0.4881657]
[1737047483027,1.05143111,713.28,712.6,0.4881657]
[1737047483323,1.05143111,713.28,712.61,0.4881657]
[1737047483629,1.05143111,713.28,712.62,0.4881657]
[1737047483823,1.05143111,713.28,712.63,0.4881657]
[1737047484030,1.05143111,713.28,712.64,0.4881657]
[1737047484231,1.05143111,713.3,712.65,0.4881657]
[1737047484424,1.05143111,713.3,712.66,0.4881657]
[1737047484626,1.05143111,713.3,712.67,0.4881657]
[1737047484830,1.05143111,713.3,712.68,0.4881657]
[1737047485130,1.05143111,713.3,712.69,0.4881657]
[1737047485323,1.05143111,713.3,712.7,0.4881657]
[1737047485527,1.05143111,713.3,712.71,0.4881657]
[1737047485731,1.05143111,713.3,712.72,0.4881657]
[1737047485930,1.05143111,713.3,712.73,0.4881657]
[1737047486130,1.05143111,713.3,712.74,0.4881657]
[1737047486333,0.28031226,713.49,712.75,0.4881657]
[1737047486525,0.28031226,713.49,712.76,0.4881657]
[1737047486729,0.28031226,713.49,712.77,0.4881657]
[1737047486928,0.28031226,713.49,712.78,0.4881657]
[1737047487127,0.28031226,713.49,712.79,0.4881657]
[1737047487331,0.28031226,713.49,712.8,0.4881657]
[1737047487530,0.28031226,713.49,712.81,0.4881657]
[1737047487731,0.28031226,713.49,712.82,0.4881657]
[1737047487932,0.28031226,713.49,712.83,0.4881657]
[1737047488127,0.28031226,713.49,712.84,0.4881657]
[1737047488333,0.28031226,713.49,712.85,0.4881657]
[1737047488531,0.28031226,713.49,712.86,0.4881657]
[1737047488827,0.28031226,713.49,712.87,0.4881657]
[1737047489032,0.28031226,713.49,712.88,0.4881657]
[1737047489233,0.28031226,713.49,712.89,0.4881657]
[1737047489426,0.28031226,713.49,712.9,0.4881657]
[1737047489629,0.28031226,713.49,712.91,0.4881657]
[1737047489829,0.28031226,713.49,712.92,0.4881657]
[1737047490028,0.28031226,713.49,712.93,0.4881657]
[1737047490233,0.28031226,713.49,712.94,0.4881657]
[1737047490431,0.28031226,713.49,712.17,0.28083182]
[1737047490632,0.28031226,713.49,712.18,0.74534863]
[1737047490835,0.28031226,713.49,712.19,1.02617256]
[1737047491034,0.28031226,713.49,712.2,0.76839409]
[1737047491235,0.28031226,713.49,712.21,0.74534476]
[1737047491432,0.28031226,713.49,712.22,0.74534476]
[1737047491632,0.28031226,713.49,712.23,0.4875741]
[1737047491836,0.28031226,713.49,712.24,0.4875741]
[1737047492031,0.28031226,713.49,712.25,0.4875741]
[1737047492229,0.28031226,713.49,712.26,0.4875741]
[1737047492429,0.28031226,713.49,712.27,0.76836649]
[1737047492630,0.28031226,713.49,712.28,0.76836255]
[1737047492830,0.28031226,713.49,712.29,0.4875741]
[1737047493034,0.28031226,713.49,712.3,0.76835466]
[1737047493341,0.28031226,713.49,712.31,0.76835072]
[1737047493530,0.28031226,713.49,712.32,0.4875741]
[1737047493735,0.28031226,713.49,712.33,0.4875741]
[1737047493935,0.28031226,713.49,712.34,0.4875741]
[1737047494134,0.28031226,713.49,712.35,0.4875741]
[1737047494337,0.28031226,713.49,712.36,0.4875741]
[1737047494537,0.28031226,713.49,712.37,0.4875741]
[1737047494737,0.28031226,713.49,712.38,0.4875741]
[1737047494935,0.28031226,713.49,712.39,0.4875741]
[1737047495138,0.28031226,713.49,712.4,0.4875741]
[1737047495340,0.28031226,713.49,712.41,0.4875741]
[1737047495641,0.28031226,713.49,712.42,0.4875741]
[1737047495838,0.28031226,713.49,712.43,0.4875741]
[1737047496037,0.28031226,713.49,712.44,0.4875741]
[1737047496236,0.28031226,713.49,712.45,0.4875741]
[1737047496438,0.28031226,713.49,712.46,0.4875741]
[1737047496734,0.28031226,713.49,712.47,0.4875741]
[1737047496937,0.28031226,713.49,712.48,0.4875741]
[1737047497141,0.28031226,713.49,712.49,0.4875741]
[1737047497340,0.28031226,713.49,712.5,0.4875741]
[1737047497540,0.28031226,713.49,712.51,0.4875741]
[1737047497842,0.28031226,713.49,712.52,0.4875741]
[1737047498040,0.28031226,713.49,712.53,0.4875741]
[1737047498241,0.28031226,713.49,712.54,0.4875741]
[1737047498437,0.28031226,713.49,712.55,0.4875741]
[1737047498640,0.28031226,713.49,712.56,0.4875741]
[1737047498835,0.28031226,713.49,712.57,0.4875741]
[1737047499039,0.28031226,713.49,712.58,0.4875741]
[1737047499339,0.28031226,713.49,712.59,0.4875741]
[1737047499637,0.28031226,713.49,712.6,0.4875741]
[1737047499837,0.28031226,713.49,712.61,0.4875741]
[1737047500038,0.28031226,713.49,712.62,0.4875741]
[1737047500240,0.28031226,713.49,712.63,0.4875741]
[1737047500441,0.28031226,713.49,712.64,0.4875741]
[1737047500636,0.28031226,713.49,712.65,0.4875741]
[1737047500834,0.28031226,713.49,712.66,0.4875741]
[1737047501035,0.28031226,713.49,712.67,0.4875741]
[1737047501240,0.28031226,713.49,712.68,0.4875741]
[1737047501535,0.28031226,713.49,712.69,0.4875741]
[1737047501742,0.28031226,713.49,712.7,0.4875741]
[1737047501942,0.28031226,713.49,712.71,0.4875741]
[1737047502142,0.28031226,713.49,712.72,0.4875741]
[1737047502343,0.28031226,713.49,712.73,0.4875741]
[1737047502535,0.28031226,713.49,712.74,0.4875741]
[1737047502736,0.28031226,713.49,712.75,0.4875741]
[1737047502939,0.28031226,713.49,712.76,0.4875741]
[1737047503138,0.28031226,713.49,712.77,0.4875741]
[1737047503338,0.28031226,713.49,712.78,0.4875741]
[1737047503545,0.28031226,713.49,712.79,0.4875741]
[1737047503744,0.28031226,713.49,712.8,0.4875741]
[1737047503945,0.28031226,713.49,712.81,0.4875741]
[1737047504139,0.28031226,713.49,712.82,0.4875741]
[1737047504339,0.28031226,713.49,712.83,0.4875741]
[1737047504543,0.28031226,713.49,712.31,0.28077662]
[1737047504845,0.28031226,713.49,712.32,0.48731102]
[1737047505043,0.28031226,713.49,712.33,0.48731102]
[1737047505243,0.28031226,713.49,712.34,0.48731102]
[1737047505442,0.28031226,713.49,712.35,0.48731102]
[1737047505643,0.28031226,713.49,712.36,0.48731102]
[1737047505840,0.28031226,713.49,712.37,0.48731102]
[1737047506041,0.28031226,713.49,712.38,0.48731102]
[1737047506348,0.28031226,713.49,712.39,0.48731102]
[1737047506643,0.28031226,713.49,712.4,0.48731102]
[1737047506841,0.28031226,713.49,712.41,0.48731102]
[1737047507044,0.28031226,713.49,712.42,0.48731102]
[1737047507345,0.28031226,713.49,712.43,0.48731102]
[1737047507547,0.28031226,713.49,712.44,0.48731102]
[1737047507747,0.28031226,713.49,712.45,0.48731102]
[1737047507943,0.28031226,713.49,712.46,0.48731102]
[1737047508148,0.28031226,713.49,712.47,0.48731102]
[1737047508349,0.28031226,713.49,712.48,0.48731102]
[1737047508546,0.28031226,713.49,712.49,0.48731102]
[1737047508746,0.28031226,713.49,712.5,0.48731102]
[1737047508944,0.28031226,713.49,712.51,0.48731102]
[1737047509150,0.28031226,713.49,712.52,0.48731102]
[1737047509452,0.28031226,713.49,712.53,0.48731102]
[1737047509653,0.28031226,713.49,712.54,0.48731102]
[1737047509855,0.28031226,713.49,712.55,0.48731102]
[1737047510046,0.28031226,713.49,712.56,0.48731102]
[1737047510250,0.28031226,713.49,712.57,0.48731102]
[1737047510447,0.28031226,713.49,712.58,0.48731102]
[1737047510651,0.28031226,713.49,712.59,0.48731102]
[1737047510955,0.28031226,713.49,712.6,0.48731102]
[1737047511253,0.28031226,713.49,712.61,0.48731102]
[1737047511455,0.28031226,713.49,712.62,0.48731102]
[1737047511753,0.28031226,713.49,712.63,0.48731102]
[1737047511954,0.28031226,713.49,712.64,0.48731102]
[1737047512253,0.28031226,713.49,712.65,0.48731102]
[1737047512448,0.28031226,713.49,712.66,0.48731102]
[1737047512652,0.28031226,713.49,712.67,0.48764476]
[1737047512848,0.28031226,713.49,712.68,0.48764476]
[1737047513055,0.28031226,713.49,712.69,0.48764476]
[1737047513253,0.28031226,713.49,712.7,0.48764476]
[1737047513456,0.28031226,713.49,712.71,0.48764476]
[1737047513655,0.28031226,713.49,712.72,0.48764476]
[1737047513856,0.28031226,713.49,712.31,0.28077662]
[1737047513857,0.28031226,713.49,712.73,0.48764476]
[1737047514156,0.28031226,713.49,712.74,0.48764476]
[1737047514356,0.28031226,713.49,712.75,0.48764476]
[1737047514555,0.28031226,713.49,712.31,0.28077662]
[1737047514556,0.28031226,713.49,712.76,0.48764476]
[1737047514757,0.28031226,713.49,712.31,0.28077662]
[1737047514758,0.28031226,713.49,712.77,0.48764476]
[1737047514956,0.28031226,713.49,712.78,0.48764476]
[1737047515255,0.28031226,713.49,712.79,0.48764476]
[1737047515456,0.28031226,713.49,712.8,0.48764476]
[1737047515757,0.28031226,713.49,712.81,0.48764476]
[1737047515951,0.28031226,713.49,712.82,0.48764476]
[1737047516256,0.28031226,713.49,712.83,0.48764476]
[1737047516658,0.28031226,713.49,712.84,0.48764476]
[1737047516860,0.28031226,713.49,712.85,0.48764476]
[1737047517054,0.28031226,713.49,712.86,0.48764476]
[1737047517261,0.28031226,713.49,712.31,0.28077662]
[1737047517262,0.28031226,713.49,712.87,0.48764476]
[1737047517462,0.28031226,713.49,712.31,0.28077662]